Workbook

Sheet Control
A1: Risk Free Rate | B1: 0.06
A2: UPB | B2: 10000000
A3: Note Rate | B3: 0.07
A4: Months | B4: 360
A5: Original LTV | B5: 0.9
A7: House Price Appreciation
A8: LA Rate | B8: =-1%/12 -> -0.0008333333333
A9: LA Volatility | B9: =5%/12 -> 0.004166666667
A10: DC Rate | B10: =1%/12 -> 0.0008333333333
A11: DC Volatility | B11: =6%/12 -> 0.005
A13: Probabilty of Default
A14: Parameter A | B14: -22.80017583
A15: Parameter B | B15: 17.67912162
A17: Number of Trials | B17: 100 | D17: Average Loss | E17: 1216739.042
A19: Trial | B19: LA Losses | C19: DC Losses | D19: Total Losses
A20: 1 | B20: 1022275.697 | C20: 293276.0052 | D20: 1315551.7
A21: 2 | B21: 616849.7098 | C21: 506277.3749 | D21: 1123127.08
A22: 3 | B22: 699589.2031 | C22: 219991.1431 | D22: 919580.35
A23: 4 | B23: 899835.4739 | C23: 316156.9059 | D23: 1215992.38
A24: 5 | B24: 887928.3562 | C24: 330230.9756 | D24: 1218159.33
A25: 6 | B25: 997185.9266 | C25: 289184.5313 | D25: 1286370.46
A26: 7 | B26: 1071547.981 | C26: 370489.0723 | D26: 1442037.05
A27: 8 | B27: 916262.8958 | C27: 239333.9895 | D27: 1155596.89
A28: 9 | B28: 940690.0145 | C28: 294704.0376 | D28: 1235394.05
A29: 10 | B29: 886611.5662 | C29: 277140.3671 | D29: 1163751.93
A30: 11 | B30: 1283736.423 | C30: 461458.9289 | D30: 1745195.35
A31: 12 | B31: 608816.3529 | C31: 232545.6653 | D31: 841362.02
A32: 13 | B32: 707556.9911 | C32: 390608.4248 | D32: 1098165.42
A33: 14 | B33: 484324.512 | C33: 156457.4097 | D33: 640781.92
A34: 15 | B34: 845010.4502 | C34: 273157.17 | D34: 1118167.62
A35: 16 | B35: 928410.8605 | C35: 280186.3685 | D35: 1208597.23
A36: 17 | B36: 582591.3269 | C36: 275816.2506 | D36: 858407.58
A37: 18 | B37: 467316.2464 | C37: 546277.1904 | D37: 1013593.44
A38: 19 | B38: 668563.1753 | C38: 202870.1365 | D38: 871433.31
A39: 20 | B39: 548872.675 | C39: 259064.8315 | D39: 807937.51
A40: 21 | B40: 1059468.673 | C40: 344738.2334 | D40: 1404206.91
A41: 22 | B41: 805694.0976 | C41: 384892.1422 | D41: 1190586.24
A42: 23 | B42: 1029365.503 | C42: 390100.9219 | D42: 1419466.42
A43: 24 | B43: 1092319.414 | C43: 375331.5719 | D43: 1467650.99
A44: 25 | B44: 1311175.969 | C44: 416060.6007 | D44: 1727236.57
A45: 26 | B45: 750298.6104 | C45: 340282.4679 | D45: 1090581.08
A46: 27 | B46: 1013827.635 | C46: 212044.4742 | D46: 1225872.11
A47: 28 | B47: 701166.561 | C47: 371089.8753 | D47: 1072256.44
A48: 29 | B48: 921980.2239 | C48: 284105.6666 | D48: 1206085.89
A49: 30 | B49: 1323438.31 | C49: 200172.8723 | D49: 1523611.18
A50: 31 | B50: 1459598.343 | C50: 322938.9784 | D50: 1782537.32
A51: 32 | B51: 665991.2966 | C51: 277359.7358 | D51: 943351.03
A52: 33 | B52: 730376.218 | C52: 337794.4491 | D52: 1068170.67
A53: 34 | B53: 1235751.282 | C53: 374351.9091 | D53: 1610103.19
A54: 35 | B54: 631226.5848 | C54: 173117.9392 | D54: 804344.52
A55: 36 | B55: 764033.4806 | C55: 484075.79 | D55: 1248109.27
A56: 37 | B56: 955402.2536 | C56: 195708.1812 | D56: 1151110.43
A57: 38 | B57: 702208.7804 | C57: 149580.25 | D57: 851789.03
A58: 39 | B58: 1039104.077 | C58: 544888.9124 | D58: 1583992.99
A59: 40 | B59: 1067960.377 | C59: 343079.6719 | D59: 1411040.05
A60: 41 | B60: 358187.7639 | C60: 263431.7353 | D60: 621619.5
A61: 42 | B61: 579473.2542 | C61: 205426.2964 | D61: 784899.55
A62: 43 | B62: 654412.0531 | C62: 267645.6655 | D62: 922057.72
A63: 44 | B63: 937854.5681 | C63: 230311.6356 | D63: 1168166.2
A64: 45 | B64: 728414.7288 | C64: 211611.4486 | D64: 940026.18
A65: 46 | B65: 538885.6645 | C65: 257901.368 | D65: 796787.03
A66: 47 | B66: 886569.2955 | C66: 276427.047 | D66: 1162996.34
A67: 48 | B67: 601074.0837 | C67: 397063.2209 | D67: 998137.3
A68: 49 | B68: 771456.7155 | C68: 386244.8261 | D68: 1157701.54
A69: 50 | B69: 2300759.009 | C69: 310919.4671 | D69: 2611678.48
A70: 51 | B70: 553977.1484 | C70: 534866.1683 | D70: 1088843.32
A71: 52 | B71: 449207.9309 | C71: 573821.3511 | D71: 1023029.28
A72: 53 | B72: 993835.886 | C72: 287526.7039 | D72: 1281362.59
A73: 54 | B73: 1024693.237 | C73: 373515.0645 | D73: 1398208.3
A74: 55 | B74: 634393.9435 | C74: 243353.4532 | D74: 877747.4
A75: 56 | B75: 583431.7461 | C75: 261932.1394 | D75: 845363.89
A76: 57 | B76: 1075644.154 | C76: 213610.9342 | D76: 1289255.09
A77: 58 | B77: 1426342.804 | C77: 234000.4482 | D77: 1660343.25
A78: 59 | B78: 505410.6784 | C78: 258901.9143 | D78: 764312.59
A79: 60 | B79: 1042643.496 | C79: 236934.3108 | D79: 1279577.81
A80: 61 | B80: 941137.6663 | C80: 275780.0345 | D80: 1216917.7
A81: 62 | B81: 1022085.82 | C81: 270513.4835 | D81: 1292599.3
A82: 63 | B82: 444247.1066 | C82: 235819.557 | D82: 680066.66
A83: 64 | B83: 736005.2196 | C83: 322095.2859 | D83: 1058100.51
A84: 65 | B84: 638405.9604 | C84: 261389.1385 | D84: 899795.1
A85: 66 | B85: 1026453.754 | C85: 204069.5717 | D85: 1230523.33
A86: 67 | B86: 328571.5041 | C86: 288620.8294 | D86: 617192.33
A87: 68 | B87: 660076.8285 | C87: 488100.541 | D87: 1148177.37
A88: 69 | B88: 901068.1076 | C88: 277062.9245 | D88: 1178131.03
A89: 70 | B89: 1229527.119 | C89: 245938.405 | D89: 1475465.52
A90: 71 | B90: 876537.0852 | C90: 390851.8318 | D90: 1267388.92
A91: 72 | B91: 489906.5525 | C91: 417404.4653 | D91: 907311.02
A92: 73 | B92: 1257688.117 | C92: 283571.469 | D92: 1541259.59
A93: 74 | B93: 856264.3176 | C93: 407361.2741 | D93: 1263625.59
A94: 75 | B94: 949136.2931 | C94: 204588.0766 | D94: 1153724.37
A95: 76 | B95: 1652872.987 | C95: 469377.0018 | D95: 2122249.99
A96: 77 | B96: 951869.25 | C96: 280994.4676 | D96: 1232863.72
A97: 78 | B97: 1045421.135 | C97: 558500.6785 | D97: 1603921.81
A98: 79 | B98: 893502.7393 | C98: 440091.8758 | D98: 1333594.62
A99: 80 | B99: 809171.5013 | C99: 299435.9898 | D99: 1108607.49
A100: 81 | B100: 955842.6659 | C100: 456736.3313 | D100: 1412579
A101: 82 | B101: 1631304.951 | C101: 274181.685 | D101: 1905486.64
A102: 83 | B102: 606418.8278 | C102: 321356.5709 | D102: 927775.4
A103: 84 | B103: 1329377.887 | C103: 588933.1797 | D103: 1918311.07
A104: 85 | B104: 707630.0324 | C104: 244219.9599 | D104: 951849.99
A105: 86 | B105: 907834.5882 | C105: 332869.2271 | D105: 1240703.82
A106: 87 | B106: 1012631.59 | C106: 256142.4397 | D106: 1268774.03
A107: 88 | B107: 1141962.642 | C107: 318949.89 | D107: 1460912.53
A108: 89 | B108: 924671.7799 | C108: 238544.8333 | D108: 1163216.61
A109: 90 | B109: 1030010.704 | C109: 408232.699 | D109: 1438243.4
A110: 91 | B110: 940917.1404 | C110: 242180.1304 | D110: 1183097.27
A111: 92 | B111: 946791.2362 | C111: 220387.9396 | D111: 1167179.18
A112: 93 | B112: 953968.1197 | C112: 267561.6384 | D112: 1221529.76
A113: 94 | B113: 1363856.262 | C113: 155280.7611 | D113: 1519137.02
A114: 95 | B114: 1266014.446 | C114: 388877.4287 | D114: 1654891.87
A115: 96 | B115: 1340218.24 | C115: 288443.7759 | D115: 1628662.02
A116: 97 | B116: 715849.2921 | C116: 196337.92 | D116: 912187.21
A117: 98 | B117: 765518.8916 | C117: 478123.8228 | D117: 1243642.71
A118: 99 | B118: 962852.8013 | C118: 352608.4902 | D118: 1315461.29
A119: 100 | B119: 791082.5195 | C119: 284246.5707 | D119: 1075329.09

Sheet LA
B4: LA | G4: =SUM(G7:G366) -> 589805.4363
A5: Month | B5: UPB | C5: Value | D5: CLTV | E5: Loss Rate | F5: Loss Amount | G5: PV
A6: 0 | B6: =OUPB -> 10000000 | C6: =B6/D6 -> 11111111.11 | D6: =OLTV -> 0.9
A7: 1 | B7: =B6+PPMT(NoteRate/12,$A7,Months,OUPB) -> 9991803.084 | C7: =C6*(1+NORMINV(RAND(),LAHPARate,LAHPAVolatility)) -> 11138059.93 | D7: =B7/C7 -> 0.8970864893 | E7: =1/(1+EXP(-(PDParmA+PDParmB*D7))) -> 0.0009668743402 | F7: =E7*B7 -> 9660.818014 | G7: =F7/(1+RiskFreeRate/12)^$A7 -> 9612.754243
A8: 2 | B8: 9983558.352 | C8: 11119490.28 | D8: =B8/C8 -> 0.8978431657 | E8: 0.0009798827207 | F8: =E8*B8 -> 9782.716321 | G8: 9685.618
A9: 3 | B9: 9975265.526 | C9: 11212956.34 | D9: 0.8896195811 | E9: 0.0008474058473 | F9: 8453.098336 | G9: 8327.559338
A10: 4 | B10: 9966924.326 | C10: 11210207.14 | D10: 0.8890936809 | E10: 0.0008395702272 | F10: 8367.932921 | G10: 8202.645508
A11: 5 | B11: 9958534.468 | C11: 11177879.48 | D11: 0.8909144608 | E11: 0.0008670116825 | F11: 8634.165724 | G11: 8421.511993
A12: 6 | B12: 9950095.67 | C12: 11118925.7 | D12: 0.8948792302 | E12: 0.0009299056617 | F12: 9252.650298 | G12: 8979.864383
A13: 7 | B13: 9941607.645 | C13: 11110551.91 | D13: 0.894789721 | E13: 0.000928436666 | F13: 9230.153057 | G13: 8913.463089
A14: 8 | B14: 9933070.107 | C14: 11114336.26 | D14: 0.8937168964 | E14: 0.0009110092168 | F14: 9049.118418 | G14: 8695.163995
A15: 9 | B15: 9924482.766 | C15: 11134672.55 | D15: 0.8913133929 | E15: 0.0008731427724 | F15: 8665.490397 | G15: 8285.115926
A16: 10 | B16: 9915845.333 | C16: 11126185.79 | D16: 0.8912169475 | E16: 0.0008716565675 | F16: 8643.211707 | G16: 8222.701659
A17: 11 | B17: 9907157.514 | C17: 11057999.34 | D17: 0.8959267594 | E17: 0.0009472709404 | F17: 9384.762416 | G17: 8883.75562
A18: 12 | B18: 9898419.017 | C18: 11018248.35 | D18: 0.8983659381 | E18: 0.0009889719326 | F18: 9789.258585 | G18: 9220.554932
A19: 13 | B19: 9889629.545 | C19: 10930318.68 | D19: 0.9047887657 | E19: 0.001107761938 | F19: 10955.35519 | G19: 10267.5697
A20: 14 | B20: 9880788.801 | C20: 10858274.58 | D20: 0.909977799 | E20: 0.001214063302 | F20: 11995.90307 | G20: 11186.85692
A21: 15 | B21: 9871896.486 | C21: 10843834.85 | D21: 0.9103694977 | E21: 0.001222489418 | F21: 12068.28899 | G21: 11198.36903
A22: 16 | B22: 9862952.3 | C22: 10854213.52 | D22: 0.9086749844 | E22: 0.001186452617 | F22: 11701.92557 | G22: 10804.39226
A23: 17 | B23: 9853955.939 | C23: 10924243.33 | D23: 0.902026405 | E23: 0.001055018601 | F23: 10396.10681 | G23: 9550.974443
A24: 18 | B24: 9844907.099 | C24: 10827894.57 | D24: 0.909217118 | E24: 0.001197865088 | F24: 11792.87051 | G24: 10780.28936
A25: 19 | B25: 9835805.474 | C25: 10838422.99 | D25: 0.9074941518 | E25: 0.001161969359 | F25: 11428.90459 | G25: 10395.59697
A26: 20 | B26: 9826650.756 | C26: 10837968.78 | D26: 0.906687494 | E26: 0.001145534958 | F26: 11256.77197 | G26: 10188.08673
A27: 21 | B27: 9817442.636 | C27: 10866111.11 | D27: 0.9034918324 | E27: 0.001082678622 | F27: 10629.13527 | G27: 9572.175161
A28: 22 | B28: 9808180.802 | C28: 10813539.97 | D28: 0.9070277473 | E28: 0.001152438587 | F28: 11303.32603 | G28: 10128.68106
A29: 23 | B29: 9798864.941 | C29: 10815450.27 | D29: 0.9060061949 | E29: 0.001131835539 | F29: 11090.70359 | G29: 9888.710846
A30: 24 | B30: 9789494.737 | C30: 10748822.12 | D30: 0.9107504645 | E30: 0.0012307407 | F30: 12048.32961 | G30: 10689.10536
A31: 25 | B31: 9780069.873 | C31: 10837511.65 | D31: 0.9024276224 | E31: 0.001062520651 | F31: 10391.52621 | G31: 9173.3464
A32: 26 | B32: 9770590.031 | C32: 10811161.23 | D32: 0.903750284 | E32: 0.001087631522 | F32: 10626.8017 | G32: 9334.369128
A33: 27 | B33: 9761054.89 | C33: 10805422.43 | D33: 0.9033478283 | E33: 0.001079928747 | F33: 10541.24378 | G33: 9213.151009
A34: 28 | B34: 9751464.128 | C34: 10737700.2 | D34: 0.9081520197 | E34: 0.00117554659 | F34: 11463.3004 | G34: 9969.191633
A35: 29 | B35: 9741817.419 | C35: 10735355 | D35: 0.9074518183 | E35: 0.001161101055 | F35: 11311.23448 | G35: 9788.005717
A36: 30 | B36: 9732114.438 | C36: 10719941.31 | D36: 0.9078514668 | E36: 0.001169324159 | F36: 11379.99653 | G36: 9798.515343
A37: 31 | B37: 9722354.856 | C37: 10830775.04 | D37: 0.8976601232 | E37: 0.0009767200081 | F37: 9496.018514 | G37: 8135.675879
A38: 32 | B38: 9712538.343 | C38: 10927774.86 | D38: 0.888793782 | E38: 0.0008351343564 | F38: 8111.274457 | G38: 6914.728306
A39: 33 | B39: 9702664.567 | C39: 11009044.72 | D39: 0.8813357392 | E39: 0.0007320465755 | F39: 7102.802369 | G39: 6024.897918
A40: 34 | B40: 9692733.194 | C40: 11040104.32 | D40: 0.8779566669 | E40: 0.000689624718 | F40: 6684.348395 | G40: 5641.738833
A41: 35 | B41: 9682743.888 | C41: 11004476.71 | D41: 0.8798913521 | E41: 0.0007136032263 | F41: 6909.637278 | G41: 5802.873298
A42: 36 | B42: 9672696.311 | C42: 11038128.48 | D42: 0.8762985796 | E42: 0.0006697161438 | F42: 6477.960874 | G42: 5413.275089
A43: 37 | B43: 9662590.124 | C43: 11032175.18 | D43: 0.8758553929 | E43: 0.0006644927936 | F43: 6420.721504 | G43: 5338.749552
A44: 38 | B44: 9652424.983 | C44: 10981499 | D44: 0.8789715307 | E44: 0.0007021007956 | F44: 6776.97526 | G44: 5606.935413
A45: 39 | B45: 9642200.546 | C45: 10976614.42 | D45: 0.8784311974 | E45: 0.0006954304699 | F45: 6705.480056 | G45: 5520.18289
A46: 40 | B46: 9631916.466 | C46: 10968169.06 | D46: 0.878169949 | E46: 0.0006922281496 | F46: 6667.483713 | G46: 5461.595012
A47: 41 | B47: 9621572.396 | C47: 11044545.94 | D47: 0.871160521 | E47: 0.0006115983339 | F47: 5884.537647 | G47: 4796.272103
A48: 42 | B48: 9611167.986 | C48: 11037923.53 | D48: 0.8707405844 | E48: 0.0006070773198 | F48: 5834.722101 | G48: 4732.009222
A49: 43 | B49: 9600702.883 | C49: 11027302.2 | D49: 0.8706302511 | E49: 0.0006058950282 | F49: 5817.018144 | G49: 4694.180261
A50: 44 | B50: 9590176.733 | C50: 11016884.81 | D50: 0.8704980488 | E50: 0.0006044814264 | F50: 5797.083711 | G50: 4654.819601
A51: 45 | B51: 9579589.181 | C51: 10959571.67 | D51: 0.874084268 | E51: 0.0006440218054 | F51: 6169.46432 | G51: 4929.180002
A52: 46 | B52: 9568939.869 | C52: 10982447.9 | D52: 0.871293901 | E52: 0.000613041324 | F52: 5866.155567 | G52: 4663.529574
A53: 47 | B53: 9558228.435 | C53: 10942893.02 | D53: 0.8734644865 | E53: 0.0006370081247 | F53: 6088.66917 | G53: 4816.343739
A54: 48 | B54: 9547454.518 | C54: 10946442.26 | D54: 0.8721970384 | E54: 0.0006229019703 | F54: 5947.128231 | G54: 4680.975181
A55: 49 | B55: 9536617.753 | C55: 10959947.9 | D55: 0.8701334932 | E55: 0.0006006003897 | F55: 5727.696339 | G55: 4485.83153
A56: 50 | B56: 9525717.774 | C56: 10877693.78 | D56: 0.8757111544 | E56: 0.0006628016104 | F56: 6313.661081 | G56: 4920.14812
A57: 51 | B57: 9514754.212 | C57: 10910362.32 | D57: 0.872084165 | E57: 0.0006216609791 | F57: 5914.951419 | G57: 4586.506702
A58: 52 | B58: 9503726.695 | C58: 10988160.82 | D58: 0.8649060432 | E58: 0.0005476115036 | F58: 5204.350065 | G58: 4015.422885
A59: 53 | B59: 9492634.851 | C59: 11065306.59 | D59: 0.8578736405 | E59: 0.0004836219083 | F59: 4590.846181 | G59: 3524.450932
A60: 54 | B60: 9481478.305 | C60: 11051890.95 | D60: 0.8579055247 | E60: 0.0004838944632 | F60: 4588.034855 | G60: 3504.768797
A61: 55 | B61: 9470256.679 | C61: 11031458.34 | D61: 0.8584773094 | E61: 0.0004888083873 | F61: 4629.140895 | G61: 3518.57654
A62: 56 | B62: 9458969.593 | C62: 10989244.49 | D62: 0.8607479434 | E62: 0.0005088195115 | F62: 4812.908288 | G62: 3640.056525
A63: 57 | B63: 9447616.666 | C63: 10999245.65 | D63: 0.8589331459 | E63: 0.0004927615573 | F63: 4655.422301 | G63: 3503.430952
A64: 58 | B64: 9436197.514 | C64: 11028906.81 | D64: 0.855587746 | E64: 0.0004644760367 | F64: 4382.887623 | G64: 3281.925767
A65: 59 | B65: 9424711.75 | C65: 11039827.5 | D65: 0.8537009972 | E65: 0.0004492453363 | F65: 4234.0078 | G65: 3154.67054
A66: 60 | B66: 9413158.986 | C66: 11052098.34 | D66: 0.8517078567 | E66: 0.0004336976904 | F66: 4082.465311 | G66: 3026.626274
A67: 61 | B67: 9401538.83 | C67: 11061376.01 | D67: 0.849942975 | E67: 0.0004203801793 | F67: 3952.220579 | G67: 2915.489006
A68: 62 | B68: 9389850.891 | C68: 11024565.33 | D68: 0.8517207352 | E68: 0.0004337964032 | F68: 4073.283543 | G68: 2989.84596
A69: 63 | B69: 9378094.771 | C69: 10985980.04 | D69: 0.8536420723 | E69: 0.0004487777927 | F69: 4208.680671 | G69: 3073.860009
A70: 64 | B70: 9366270.075 | C70: 10922613.12 | D70: 0.8575118397 | E70: 0.0004805398615 | F70: 4500.866124 | G70: 3270.906598
A71: 65 | B71: =B70+PPMT(NoteRate/12,$A71,Months,OUPB) -> 9354376.401 | C71: =C70*(1+NORMINV(RAND(),LAHPARate,LAHPAVolatility)) -> 10878294.71 | D71: 0.8599120222 | E71: =1/(1+EXP(-(PDParmA+PDParmB*D71))) -> 0.00050135903 | F71: 4689.901079 | G71: =F71/(1+RiskFreeRate/12)^$A71 -> 3391.327006
A72: 66 | B72: 9342413.347 | C72: 10841788.08 | D72: =B72/C72 -> 0.86170411 | E72: 0.0005174893122 | F72: =E72*B72 -> 4834.599057 | G72: 3478.567116
A73: 67 | B73: 9330380.508 | C73: 10911005.79 | D73: 0.8551347776 | E73: 0.0004607730344 | F73: 4299.187739 | G73: 3077.940873
A74: 68 | B74: 9318277.479 | C74: 10916266.31 | D74: 0.8536139755 | E74: 0.0004485550281 | F74: 4179.760216 | G74: 2977.550723
A75: 69 | B75: 9306103.848 | C75: 10921235.47 | D75: 0.8521109059 | E75: 0.0004367977088 | F75: 4064.884838 | G75: 2881.30999
A76: 70 | B76: 9293859.204 | C76: 10932593.35 | D76: 0.850105634 | E76: 0.0004215902826 | F76: 3918.200728 | G76: 2763.518384
A77: 71 | B77: 9281543.133 | C77: 11002247.53 | D77: 0.8436042826 | E77: 0.0003758317398 | F77: 3488.298504 | G77: 2448.066759
A78: 72 | B78: 9269155.218 | C78: 10938915.92 | D78: 0.8473559247 | E78: 0.0004015939514 | F78: 3722.43667 | G78: 2599.386574
A79: 73 | B79: 9256695.041 | C79: 10971970.25 | D79: 0.8436675304 | E79: 0.0003762520584 | F79: 3482.850564 | G79: 2419.983097
A80: 74 | B80: 9244162.179 | C80: 10980168.22 | D80: 0.8418962252 | E80: 0.0003646564827 | F80: 3370.943665 | G80: 2330.574148
A81: 75 | B81: 9231556.209 | C81: 10952600.65 | D81: 0.842864312 | E81: 0.0003709489295 | F81: 3424.435894 | G81: 2355.778255
A82: 76 | B82: 9218876.704 | C82: 10966964.76 | D82: 0.8406042057 | E82: 0.0003564244276 | F82: 3285.832852 | G82: 2249.182905
A83: 77 | B83: 9206123.235 | C83: 10946330.94 | D83: 0.8410236531 | E83: 0.0003590763506 | F83: 3305.701135 | G83: 2251.525301
A84: 78 | B84: 9193295.371 | C84: 10925095.21 | D84: 0.8414842339 | E84: 0.0003620110618 | F84: 3328.074619 | G84: 2255.486531
A85: 79 | B85: 9180392.678 | C85: 10893426.1 | D85: 0.842746129 | E85: 0.0003701749749 | F85: 3398.351629 | G85: 2291.656045
A86: 80 | B86: 9167414.719 | C86: 10925467.3 | D86: 0.839086738 | E86: 0.0003469928488 | F86: 3181.027349 | G86: 2134.432684
A87: 81 | B87: 9154361.056 | C87: 10943596.88 | D87: 0.8365038622 | E87: 0.0003315095723 | F87: 3034.758318 | G87: 2026.157065
A88: 82 | B88: 9141231.246 | C88: 10913843.07 | D88: 0.8375813347 | E88: 0.0003378827954 | F88: 3088.664767 | G88: 2051.888276
A89: 83 | B89: 9128024.845 | C89: 10874701.24 | D89: 0.8393816658 | E89: 0.000348806184 | F89: 3183.911514 | G89: 2104.640211
A90: 84 | B90: 9114741.407 | C90: 10836196.71 | D90: 0.8411384226 | E90: 0.0003598054024 | F90: 3279.5332 | G90: 2157.063073
A91: 85 | B91: 9101380.483 | C91: 10838452.67 | D91: 0.8397306113 | E91: 0.0003509638805 | F91: 3194.255812 | G91: 2090.520566
A92: 86 | B92: 9087941.619 | C92: 10791423.47 | D92: 0.8421448427 | E92: 0.0003662622105 | F92: 3328.569587 | G92: 2167.585961
A93: 87 | B93: 9074424.362 | C93: 10773606.58 | D93: 0.8422828784 | E93: 0.0003671567819 | F93: 3331.736447 | G93: 2158.853972
A94: 88 | B94: 9060828.255 | C94: 10708152.74 | D94: 0.846161656 | E94: 0.0003932070335 | F94: 3562.781399 | G94: 2297.077996
A95: 89 | B95: 9047152.837 | C95: 10723420.76 | D95: 0.8436816048 | E95: 0.000376345655 | F95: 3404.85666 | G95: 2184.335465
A96: 90 | B96: 9033397.646 | C96: 10757446.89 | D96: 0.8397343479 | E96: 0.0003509870576 | F96: 3170.60566 | G96: 2023.935521
A97: 91 | B97: 9019562.216 | C97: 10817517.24 | D97: 0.8337922667 | E97: 0.0003159972702 | F97: 2850.157038 | G97: 1810.327588
A98: 92 | B98: 9005646.079 | C98: 10783012.58 | D98: 0.8351697651 | E98: 0.0003237846862 | F98: 2915.89029 | G98: 1842.864899
A99: 93 | B99: 8991648.765 | C99: 10842318.77 | D99: 0.8293104965 | E99: 0.0002919328723 | F99: 2624.957851 | G99: 1650.73968
A100: 94 | B100: 8977569.8 | C100: 10825288.19 | D100: 0.8293146235 | E100: 0.0002919541668 | F100: 2621.038911 | G100: 1640.074829
A101: 95 | B101: 8963408.708 | C101: 10823673.34 | D101: 0.8281300096 | E101: 0.0002859051018 | F101: 2562.684279 | G101: 1595.582403
A102: 96 | B102: 8949165.009 | C102: 10824871.73 | D102: 0.8267224993 | E102: 0.0002788805142 | F102: 2495.747739 | G102: 1546.175395
A103: 97 | B103: 8934838.222 | C103: 10836859.66 | D103: 0.8244859214 | E103: 0.0002680714378 | F103: 2395.174929 | G103: 1476.485706
A104: 98 | B104: 8920427.862 | C104: 10822326.25 | D104: 0.8242615922 | E104: 0.0002670106705 | F104: 2381.849424 | G104: 1460.966477
A105: 99 | B105: 8905933.442 | C105: 10827219.68 | D105: 0.8225503596 | E105: 0.0002590558018 | F105: 2307.133728 | G105: 1408.097263
A106: 100 | B106: 8891354.471 | C106: 10769250.76 | D106: 0.8256242394 | E106: 0.0002735193908 | F106: 2431.957858 | G106: 1476.895848
A107: 101 | B107: 8876690.456 | C107: 10780416.04 | D107: 0.8234088947 | E107: 0.0002630167385 | F107: 2334.718173 | G107: 1410.789525
A108: 102 | B108: 8861940.9 | C108: 10725899.96 | D108: 0.826218866 | E108: 0.0002764091246 | F108: 2449.521326 | G108: 1472.797118
A109: 103 | B109: 8847105.306 | C109: 10704862.74 | D109: 0.8264566785 | E109: 0.000277573359 | F109: 2455.720737 | G109: 1469.178678
A110: 104 | B110: 8832183.171 | C110: 10774832.25 | D110: 0.8197049353 | E110: 0.0002463495831 | F110: 2175.804642 | G110: 1295.237699
A111: 105 | B111: 8817173.99 | C111: 10788216.45 | D111: 0.8172967269 | E111: 0.0002360838069 | F111: 2081.592001 | G111: 1232.988784
A112: 106 | B112: 8802077.255 | C112: 10832875.9 | D112: 0.8125337479 | E112: 0.0002170224137 | F112: 1910.248051 | G112: 1125.867335
A113: 107 | B113: 8786892.456 | C113: 10822725.18 | D113: 0.8118927819 | E113: 0.0002145775831 | F113: 1885.470146 | G113: 1105.734989
A114: 108 | B114: 8771619.08 | C114: 10831778.76 | D114: 0.809804121 | E114: 0.0002068002716 | F114: 1813.973208 | G114: 1058.513006
A115: 109 | B115: 8756256.608 | C115: 10843485.44 | D115: 0.8075131057 | E115: 0.0001985932029 | F115: 1738.933046 | G115: 1009.676223
A116: 110 | B116: 8740804.522 | C116: 10772841.75 | D116: 0.8113740762 | E116: 0.000212619262 | F116: 1858.463406 | G116: 1073.710551
A117: 111 | B117: 8725262.299 | C117: 10723525.56 | D117: 0.8136561289 | E117: 0.0002213707723 | F117: 1931.518053 | G117: 1110.365391
A118: 112 | B118: 8709629.413 | C118: 10672172.05 | D118: 0.8161065403 | E118: 0.0002311692946 | F118: 2013.398887 | G118: 1151.677567
A119: 113 | B119: 8693905.335 | C119: 10732253.35 | D119: 0.8100726893 | E119: 0.0002077843001 | F119: 1806.457036 | G119: 1028.164627
A120: 114 | B120: 8678089.533 | C120: 10704639.99 | D120: 0.8106848566 | E120: 0.0002100448002 | F120: 1822.787582 | G120: 1032.297846
A121: 115 | B121: 8662181.473 | C121: 10665804.32 | D121: 0.8121451709 | E121: 0.0002155369642 | F121: 1867.020298 | G121: 1052.087686
A122: 116 | B122: 8646180.615 | C122: 10636914.35 | D122: 0.8128466893 | E122: 0.0002182261612 | F122: 1886.822804 | G122: 1057.956845
A123: 117 | B123: 8630086.419 | C123: 10707845.11 | D123: 0.8059592129 | E123: 0.0001932128532 | F123: 1667.443621 | G123: 930.2976695
A124: 118 | B124: 8613898.34 | C124: 10665477.99 | D124: 0.8076429722 | E124: 0.0001990495911 | F124: 1714.592942 | G124: 951.8439294
A125: 119 | B125: 8597615.831 | C125: 10654473.9 | D125: 0.8069488848 | E125: 0.0001966224842 | F125: 1690.484583 | G125: 933.7913905
A126: 120 | B126: 8581238.341 | C126: 10631701.99 | D126: 0.807136839 | E126: 0.000197276792 | F126: 1692.879171 | G126: 930.4618061
A127: 121 | B127: 8564765.315 | C127: 10481561.78 | D127: 0.8171268263 | E127: 0.0002353759142 | F127: 2015.939465 | G127: 1102.51375
A128: 122 | B128: 8548196.196 | C128: 10484117.2 | D128: 0.8153472562 | E128: 0.0002280876362 | F128: 1949.737864 | G128: 1061.003195
A129: 123 | B129: 8531530.425 | C129: 10498316.67 | D129: 0.8126569901 | E129: 0.0002174956775 | F129: 1855.57099 | G129: 1004.736034
A130: 124 | B130: 8514767.436 | C130: 10490325.01 | D130: 0.8116781345 | E130: 0.0002137650258 | F130: 1820.15948 | G130: 980.6584712
A131: 125 | B131: 8497906.663 | C131: 10525815.81 | D131: 0.8073394803 | E131: 0.0001979846674 | F131: 1682.455224 | G131: 901.9569211
A132: 126 | B132: 8480947.536 | C132: 10589858.18 | D132: 0.8008556295 | E132: 0.0001765461376 | F132: 1497.278531 | G132: 798.6910468
A133: 127 | B133: 8463889.48 | C133: 10595236.48 | D133: 0.7988391286 | E133: 0.0001703641942 | F133: 1441.943711 | G133: 765.3471411
A134: 128 | B134: 8446731.919 | C134: 10548159.07 | D134: 0.8007778286 | E134: 0.0001763035168 | F134: 1489.188543 | G134: 786.4910438
A135: 129 | B135: =B134+PPMT(NoteRate/12,$A135,Months,OUPB) -> 8429474.273 | C135: =C134*(1+NORMINV(RAND(),LAHPARate,LAHPAVolatility)) -> 10558302.69 | D135: 0.7983739925 | E135: =1/(1+EXP(-(PDParmA+PDParmB*D135))) -> 0.0001689692359 | F135: 1424.321827 | G135: =F135/(1+RiskFreeRate/12)^$A135 -> 748.4902767
A136: 130 | B136: 8412115.956 | C136: 10500750.75 | D136: =B136/C136 -> 0.801096622 | E136: 0.0001772997898 | F136: =E136*B136 -> 1491.466391 | G136: 779.8757978
A137: 131 | B137: 8394656.383 | C137: 10490813.38 | D137: 0.8001911846 | E137: 0.000174484778 | F137: 1464.739755 | G137: 762.0902037
A138: 132 | B138: 8377094.963 | C138: 10396847.84 | D138: 0.8057341118 | E138: 0.000192445621 | F138: 1612.135242 | G138: 834.6056496
A139: 133 | B139: 8359431.1 | C139: 10374949.02 | D139: 0.8057322578 | E139: 0.0001924393145 | F139: 1608.683191 | G139: 828.6751399
A140: 134 | B140: 8341664.199 | C140: 10466304.15 | D140: 0.7970018906 | E140: 0.0001649204366 | F140: 1375.710902 | G140: 705.139273
A141: 135 | B141: 8323793.657 | C141: 10418035.68 | D141: 0.798979185 | E141: 0.0001707864791 | F141: 1421.591412 | G141: 725.0307962
A142: 136 | B142: 8305818.871 | C142: 10444370.16 | D142: 0.7952436333 | E142: 0.0001598736406 | F142: 1327.881501 | G142: 673.8681372
A143: 137 | B143: 8287739.231 | C143: 10332997.25 | D143: 0.8020653666 | E143: 0.0001803619237 | F143: 1494.792591 | G143: 754.7975396
A144: 138 | B144: 8269554.127 | C144: 10275931.82 | D144: 0.804749805 | E144: 0.0001891263414 | F144: 1563.990517 | G144: 785.8100759
A145: 139 | B145: 8251262.944 | C145: 10231502.73 | D145: 0.8064566037 | E145: 0.0001949190166 | F145: 1608.328059 | G145: 804.0666594
A146: 140 | B146: 8232865.061 | C146: 10152149.6 | D146: 0.8109479649 | E146: 0.0002110238976 | F146: 1737.331273 | G146: 864.2392604
A147: 141 | B147: 8214359.858 | C147: 10099711.47 | D147: 0.8133261908 | E147: 0.0002200835549 | F147: 1807.845518 | G147: 894.8425141
A148: 142 | B148: 8195746.708 | C148: 10157644.55 | D148: 0.8068550411 | E148: 0.0001962966075 | F148: 1608.797275 | G148: 792.3563679
A149: 143 | B149: 8177024.98 | C149: 10182756.26 | D149: 0.8030266827 | E149: 0.0001834528435 | F149: 1500.098484 | G149: 735.1448869
A150: 144 | B150: 8158194.043 | C150: 10136248.18 | D150: 0.8048534227 | E150: 0.0001894730483 | F150: 1545.757894 | G150: 753.752178
A151: 145 | B151: 8139253.259 | C151: 10134976.34 | D151: 0.8030855705 | E151: 0.0001836438979 | F151: 1494.724194 | G151: 725.2406017
A152: 146 | B152: 8120201.987 | C152: 10115744.52 | D152: 0.8027290499 | E152: 0.0001824902465 | F152: 1481.857662 | G152: 715.4206533
A153: 147 | B153: 8101039.582 | C153: 10071693.74 | D153: 0.804337363 | E153: 0.000187752579 | F153: 1520.991074 | G153: 730.6604286
A154: 148 | B154: 8081765.397 | C154: 10048785.31 | D154: 0.8042529664 | E154: 0.0001874727027 | F154: 1515.110402 | G154: 724.2143732
A155: 149 | B155: 8062378.779 | C155: 10007428.44 | D155: 0.8056394137 | E155: 0.0001921237639 | F155: 1548.974557 | G155: 736.7176634
A156: 150 | B156: 8042879.072 | C156: 9923238.635 | D156: 0.8105094887 | E156: 0.0002093947322 | F156: 1684.13651 | G156: 797.0178122
A157: 151 | B157: 8023265.617 | C157: 9939406.875 | D157: 0.8072177464 | E157: 0.0001975591171 | F157: 1585.069271 | G157: 746.4022182
A158: 152 | B158: 8003537.751 | C158: 9948475.74 | D158: 0.8044988961 | E158: 0.0001882894211 | F158: 1506.98149 | G158: 706.1005195
A159: 153 | B159: 7983694.805 | C159: 9837294.034 | D159: 0.8115742781 | E159: 0.000213372978 | F159: 1703.504736 | G159: 794.2109976
A160: 154 | B160: 7963736.108 | C160: 9816688.528 | D160: 0.811244656 | E160: 0.0002121334409 | F160: 1689.374743 | G160: 783.7047636
A161: 155 | B161: 7943660.986 | C161: 9797051.148 | D161: 0.8108216305 | E161: 0.000210553205 | F161: 1672.56328 | G161: 772.0456595
A162: 156 | B162: 7923468.759 | C162: 9833704.524 | D162: 0.8057460685 | E162: 0.0001924862971 | F162: 1525.159162 | G162: 700.502249
A163: 157 | B163: 7903158.744 | C163: 9900771.089 | D163: 0.7982366901 | E163: 0.0001685596488 | F163: 1332.153662 | G163: 608.8111916
A164: 158 | B164: 7882730.254 | C164: 9935616.165 | D164: 0.7933811173 | E164: 0.0001546959054 | F164: 1219.426093 | G164: 554.5206534
A165: 159 | B165: 7862182.597 | C165: 9921933.616 | D165: 0.7924042733 | E165: 0.0001520476859 | F165: 1195.42667 | G165: 540.9026654
A166: 160 | B166: 7841515.08 | C166: 9902513.399 | D166: 0.791871191 | E166: 0.0001506216697 | F166: 1181.102094 | G166: 531.7623174
A167: 161 | B167: 7820727.001 | C167: 9870484.904 | D167: 0.7923346297 | E167: 0.0001518606226 | F167: 1187.660471 | G167: 532.0547924
A168: 162 | B168: 7799817.659 | C168: 9815254.444 | D168: 0.7946628082 | E168: 0.00015824064 | F168: 1234.248138 | G168: 550.1745239
A169: 163 | B169: 7778786.346 | C169: 9841002.834 | D169: 0.7904465101 | E169: 0.0001468758736 | F169: 1142.51604 | G169: 506.7505627
A170: 164 | B170: 7757632.35 | C170: 9847460.113 | D170: 0.7877800226 | E170: 0.0001401135883 | F170: 1086.949705 | G170: 479.7061884
A171: 165 | B171: 7736354.956 | C171: 9933532.816 | D171: 0.7788120399 | E171: 0.0001195731031 | F171: 925.0599688 | G171: 406.2278533
A172: 166 | B172: 7714953.444 | C172: 9954074.458 | D172: 0.7750548257 | E172: 0.0001118894536 | F172: 863.2219254 | G172: 377.1865614
A173: 167 | B173: 7693427.089 | C173: 9907204.245 | D173: 0.7765487518 | E173: 0.0001148836261 | F173: 883.8488013 | G173: 384.2781258
A174: 168 | B174: 7671775.165 | C174: 9913803.221 | D174: 0.7738478356 | E174: 0.0001095274497 | F174: 840.2699687 | G174: 363.5134355
A175: 169 | B175: 7649996.937 | C175: 9898235.975 | D175: 0.7728646757 | E175: 0.0001076403616 | F175: 823.4484365 | G175: 354.4638681
A176: 170 | B176: 7628091.67 | C176: 9888115.498 | D176: 0.7714403893 | E176: 0.0001049640835 | F176: 800.6756507 | G176: 342.9463009
A177: 171 | B177: 7606058.621 | C177: 9795776.29 | D177: 0.7764630792 | E177: 0.0001147097733 | F177: 872.4892604 | G177: 371.8463557
A178: 172 | B178: 7583897.047 | C178: 9773631.193 | D178: 0.7759549033 | E178: 0.0001136839409 | F178: 862.1673036 | G178: 365.6191433
A179: 173 | B179: 7561606.197 | C179: 9809179.994 | D179: 0.7708703685 | E179: 0.0001039117327 | F179: 785.739602 | G179: 331.5507072
A180: 174 | B180: 7539185.317 | C180: 9801263.087 | D180: 0.769205484 | E180: 0.0001008981037 | F180: 760.6895017 | G180: 319.3836479
A181: 175 | B181: 7516633.649 | C181: 9706607.642 | D181: 0.7743831755 | E181: 0.0001105688604 | F181: 831.1056163 | G181: 347.2125463
A182: 176 | B182: 7493950.429 | C182: 9631632.625 | D182: 0.7780560909 | E182: 0.0001179858849 | F182: 884.1803729 | G182: 367.5479468
A183: 177 | B183: 7471134.89 | C183: 9635357.374 | D183: 0.7753874195 | E183: 0.0001125492237 | F183: 840.8704321 | G183: 347.8052639
A184: 178 | B184: 7448186.261 | C184: 9642458.137 | D184: 0.7724364633 | E184: 0.0001068286424 | F184: 795.6796263 | G184: 327.4758252
A185: 179 | B185: 7425103.764 | C185: 9673387.509 | D185: 0.7675805148 | E185: 9.804101995e-05 | F185: 727.9647463 | G185: 298.1160056
A186: 180 | B186: 7401886.62 | C186: 9650391.705 | D186: 0.7670037493 | E186: 9.704650039e-05 | F186: 718.3271928 | G186: 292.7057076
A187: 181 | B187: 7378534.043 | C187: 9580444.03 | D187: 0.7701661864 | E187: 0.0001026262532 | F187: 757.2313026 | G187: 307.0233321
A188: 182 | B188: 7355045.242 | C188: 9587423.721 | D188: 0.767155542 | E188: 9.730725506e-05 | F188: 715.6992633 | G188: 288.7402515
A189: 183 | B189: 7331419.423 | C189: 9594685.17 | D189: 0.7641125574 | E189: 9.221117725e-05 | F189: 676.0388159 | G189: 271.3828075
A190: 184 | B190: 7307655.786 | C190: 9508634.552 | D190: 0.7685284093 | E190: 9.969766403e-05 | F190: 728.5562115 | G190: 291.0098587
A191: 185 | B191: 7283753.529 | C191: 9528735.566 | D191: 0.7643987472 | E191: 9.267886637e-05 | F191: 675.05002 | G191: 268.2962049
A192: 186 | B192: 7259711.842 | C192: 9439460.076 | D192: 0.7690812593 | E192: 0.0001006767782 | F192: 730.884399 | G192: 289.0421674
A193: 187 | B193: 7235529.911 | C193: 9428500.686 | D193: 0.7674104454 | E193: 9.774671372e-05 | F193: 707.2492708 | G193: 278.303687
A194: 188 | B194: 7211206.92 | C194: 9353503.163 | D194: 0.7709632203 | E194: 0.00010408243 | F194: 750.5599396 | G194: 293.8771168
A195: 189 | B195: 7186742.044 | C195: 9339776.383 | D195: 0.7694768856 | E195: 0.0001013833412 | F195: 728.6159208 | G195: 283.8657428
A196: 190 | B196: 7162134.456 | C196: 9366112.961 | D196: 0.7646858933 | E196: 9.315050206e-05 | F196: 667.1564204 | G196: 258.6282351
A197: 191 | B197: 7137383.324 | C197: 9426058.521 | D197: 0.7571970096 | E197: 8.16001543e-05 | F197: 582.4115805 | G197: 224.6529916
A198: 192 | B198: 7112487.811 | C198: 9455288.553 | D198: 0.7522232422 | E198: 7.47318357e-05 | F198: 531.5292705 | G198: 204.0061821
A199: 193 | B199: =B198+PPMT(NoteRate/12,$A199,Months,OUPB) -> 7087447.074 | C199: =C198*(1+NORMINV(RAND(),LAHPARate,LAHPAVolatility)) -> 9387509.933 | D199: 0.7549869054 | E199: =1/(1+EXP(-(PDParmA+PDParmB*D199))) -> 7.847354628e-05 | F199: 556.177106 | G199: =F199/(1+RiskFreeRate/12)^$A199 -> 212.4042435
A200: 194 | B200: 7062260.265 | C200: 9383856.792 | D200: =B200/C200 -> 0.7525967651 | E200: 7.522692741e-05 | F200: =E200*B200 -> 531.2721403 | G200: 201.8836098
A201: 195 | B201: 7036926.534 | C201: 9369730.108 | D201: 0.751027666 | E201: 7.316893964e-05 | F201: 514.8844528 | G201: 194.6828681
A202: 196 | B202: 7011445.023 | C202: 9448667.442 | D202: 0.7420564927 | E202: 6.243832541e-05 | F202: 437.7828859 | G202: 164.7064761
A203: 197 | B203: 6985814.869 | C203: 9520359.916 | D203: 0.7337763415 | E203: 5.393620604e-05 | F203: 376.7883501 | G203: 141.053316
... 163 more rows

Sheet DC
B4: LA | G4: =SUM(G7:G366) -> 248626.1475
A5: Month | B5: UPB | C5: Value | D5: CLTV | E5: Loss Rate | F5: Loss Amount | G5: PV
A6: 0 | B6: =OUPB -> 10000000 | C6: =B6/D6 -> 11111111.11 | D6: =OLTV -> 0.9
A7: 1 | B7: =B6+PPMT(NoteRate/12,$A7,Months,OUPB) -> 9991803.084 | C7: =C6*(1+NORMINV(RAND(),DCHPARate,DCHPAVolatility)) -> 11053197.96 | D7: =B7/C7 -> 0.9039739559 | E7: =1/(1+EXP(-(PDParmA+PDParmB*D7))) -> 0.001091936178 | F7: =E7*B7 -> 10910.41127 | G7: =F7/(1+RiskFreeRate/12)^$A7 -> 10856.13062
A8: 2 | B8: 9983558.352 | C8: 11129370.55 | D8: =B8/C8 -> 0.8970460912 | E8: 0.0009661847094 | F8: =E8*B8 -> 9645.961425 | G8: 9550.220465
A9: 3 | B9: 9975265.526 | C9: 11225224.91 | D9: 0.888647275 | E9: 0.0008329758604 | F9: 8309.155385 | G9: 8185.754119
A10: 4 | B10: 9966924.326 | C10: 11243566.92 | D10: 0.8864557306 | E10: 0.0008013451384 | F10: 7986.946354 | G10: 7829.184369
A11: 5 | B11: 9958534.468 | C11: 11261261.84 | D11: 0.8843178153 | E11: 0.0007716453072 | F11: 7684.456389 | G11: 7495.193364
A12: 6 | B12: 9950095.67 | C12: 11344853.68 | D12: 0.8770580876 | E12: 0.0006787632136 | F12: 6753.758913 | G12: 6554.645119
A13: 7 | B13: 9941607.645 | C13: 11405579.63 | D13: 0.8716442274 | E13: 0.0006168476058 | F13: 6132.456874 | G13: 5922.050008
A14: 8 | B14: 9933070.107 | C14: 11378674.88 | D14: 0.8729549103 | E14: 0.0006312987866 | F14: 6270.735106 | G14: 6025.45658
A15: 9 | B15: 9924482.766 | C15: 11409308.55 | D15: 0.86985839 | E15: 0.0005976881537 | F15: 5931.745781 | G15: 5671.369904
A16: 10 | B16: 9915845.333 | C16: 11469818.44 | D16: 0.8645163289 | E16: 0.0005438535783 | F16: 5392.767967 | G16: 5130.3987
A17: 11 | B17: 9907157.514 | C17: 11424976.74 | D17: 0.8671490316 | E17: 0.0005697501968 | F17: 5644.604943 | G17: 5343.266954
A18: 12 | B18: 9898419.017 | C18: 11431936.04 | D18: 0.8658567525 | E18: 0.0005568882119 | F18: 5512.312867 | G18: 5192.076923
A19: 13 | B19: 9889629.545 | C19: 11605485.92 | D19: 0.8521512681 | E19: 0.0004371093688 | F19: 4322.849728 | G19: 4051.457952
A20: 14 | B20: 9880788.801 | C20: 11584127.65 | D20: 0.8529592476 | E20: 0.000443395219 | F20: 4381.094514 | G20: 4085.617996
A21: 15 | B21: 9871896.486 | C21: 11559376.49 | D21: 0.8540163472 | E21: 0.0004517557888 | F21: 4459.686385 | G21: 4138.218261
A22: 16 | B22: 9862952.3 | C22: 11583915.89 | D22: 0.8514350757 | E22: 0.0004316121066 | F22: 4256.969619 | G22: 3930.461645
A23: 17 | B23: 9853955.939 | C23: 11627605.69 | D23: 0.8474621687 | E23: 0.0004023486709 | F23: 3964.726075 | G23: 3642.420967
A24: 18 | B24: 9844907.099 | C24: 11582126.73 | D24: 0.8500085801 | E24: 0.0004208678305 | F24: 4143.404692 | G24: 3787.636054
A25: 19 | B25: 9835805.474 | C25: 11542670.9 | D25: 0.8521256091 | E25: 0.0004369112151 | F25: 4297.373721 | G25: 3908.840508
A26: 20 | B26: 9826650.756 | C26: 11580765.09 | D26: 0.8485320859 | E26: 0.0004100284576 | F26: 4029.206453 | G26: 3646.685294
A27: 21 | B27: 9817442.636 | C27: 11533325.68 | D27: 0.8512239151 | E27: 0.000430004536 | F27: 4221.544865 | G27: 3801.754882
A28: 22 | B28: 9808180.802 | C28: 11484261.73 | D28: 0.8540540985 | E28: 0.0004520572591 | F28: 4433.85933 | G28: 3973.091362
A29: 23 | B29: 9798864.941 | C29: 11442774.26 | D29: 0.8563364722 | E29: 0.0004706621816 | F29: 4611.95515 | G29: 4112.118817
A30: 24 | B30: 9789494.737 | C30: 11483099.24 | D30: 0.8525132922 | E30: 0.0004399147237 | F30: 4306.542872 | G30: 3820.703119
A31: 25 | B31: 9780069.873 | C31: 11556583 | D31: 0.8462769551 | E31: 0.0003940090429 | F31: 3853.43597 | G31: 3401.704646
A32: 26 | B32: 9770590.031 | C32: 11587677.75 | D32: 0.8431879312 | E32: 0.0003730765297 | F32: 3645.177822 | G32: 3201.850969
A33: 27 | B33: 9761054.89 | C33: 11573933.07 | D33: 0.8433654171 | E33: 0.0003742485668 | F33: 3653.060803 | G33: 3192.811165
A34: 28 | B34: 9751464.128 | C34: 11548644.68 | D34: 0.8443816912 | E34: 0.0003810308119 | F34: 3715.608294 | G34: 3231.32168
A35: 29 | B35: 9741817.419 | C35: 11477639.72 | D35: 0.8487648733 | E35: 0.0004117187012 | F35: 4010.888415 | G35: 3470.761641
A36: 30 | B36: 9732114.438 | C36: 11521120.85 | D36: 0.8447194129 | E36: 0.0003833117334 | F36: 3730.433655 | G36: 3212.014283
A37: 31 | B37: 9722354.856 | C37: 11504699.7 | D37: 0.8450768042 | E37: 0.0003857403669 | F37: 3750.304729 | G37: 3213.058576
A38: 32 | B38: 9712538.343 | C38: 11589780.07 | D38: 0.8380261128 | E38: 0.0003405492293 | F38: 3307.597447 | G38: 2819.67252
A39: 33 | B39: 9702664.567 | C39: 11599128.25 | D39: 0.8364994644 | E39: 0.0003314838069 | F39: 3216.276187 | G39: 2728.181737
A40: 34 | B40: 9692733.194 | C40: 11657647.15 | D40: 0.8314484965 | E40: 0.0003031751231 | F40: 2938.59558 | G40: 2480.24008
A41: 35 | B41: 9682743.888 | C41: 11763309.16 | D41: 0.8231309539 | E41: 0.0002617278478 | F41: 2534.243718 | G41: 2128.316526
A42: 36 | B42: 9672696.311 | C42: 11658663.01 | D42: 0.8296574234 | E42: 0.0002937283771 | F42: 2841.14539 | G42: 2374.188709
A43: 37 | B43: 9662590.124 | C43: 11720936.23 | D43: 0.8243872274 | E43: 0.0002676042336 | F43: 2585.750024 | G43: 2150.018775
A44: 38 | B44: 9652424.983 | C44: 11807419.11 | D44: 0.8174881311 | E44: 0.0002368838446 | F44: 2286.503539 | G44: 1891.740367
A45: 39 | B45: 9642200.546 | C45: 11753608.15 | D45: 0.8203608987 | E45: 0.0002492223777 | F45: 2403.052147 | G45: 1978.275565
A46: 40 | B46: 9631916.466 | C46: 11793785.43 | D46: 0.8166942262 | E46: 0.0002335830468 | F46: 2249.852394 | G46: 1842.941527
A47: 41 | B47: 9621572.396 | C47: 11774010.35 | D47: 0.8171873566 | E47: 0.0002356278706 | F47: 2267.110615 | G47: 1847.839211
A48: 42 | B48: 9611167.986 | C48: 11818483.97 | D48: 0.8132318838 | E48: 0.0002197170037 | F48: 2111.737032 | G48: 1712.636684
A49: 43 | B49: 9600702.883 | C49: 11717712.14 | D49: 0.8193325424 | E49: 0.0002447334441 | F49: 2349.613082 | G49: 1896.075803
A50: 44 | B50: 9590176.733 | C50: 11630498.68 | D50: 0.8245714131 | E50: 0.0002684768033 | F50: 2574.739993 | G50: 2067.410233
A51: 45 | B51: 9579589.181 | C51: 11616808.94 | D51: 0.8246317235 | E51: 0.0002687631387 | F51: 2574.640456 | G51: 2057.045084
A52: 46 | B52: 9568939.869 | C52: 11641449.07 | D52: 0.8219715442 | E52: 0.000256419091 | F52: 2453.658863 | G52: 1950.631984
A53: 47 | B53: 9558228.435 | C53: 11546332.25 | D53: 0.8278151218 | E53: 0.0002843183589 | F53: 2717.579823 | G53: 2149.697774
A54: 48 | B54: 9547454.518 | C54: 11491989.4 | D54: 0.8307921444 | E54: 0.0002996785417 | F54: 2861.167247 | G54: 2252.020194
A55: 49 | B55: 9536617.753 | C55: 11500243.06 | D55: 0.8292535822 | E55: 0.0002916393641 | F55: 2781.253137 | G55: 2178.228781
A56: 50 | B56: 9525717.774 | C56: 11536921.34 | D56: 0.8256724207 | E56: 0.0002737524107 | F56: 2607.688205 | G56: 2032.135088
A57: 51 | B57: 9514754.212 | C57: 11521809.87 | D57: 0.8258037861 | E57: 0.0002743887441 | F57: 2610.741459 | G57: 2024.392484
A58: 52 | B58: 9503726.695 | C58: 11552786.88 | D58: 0.8226349881 | E58: 0.0002594435799 | F58: 2465.680876 | G58: 1902.399203
A59: 53 | B59: 9492634.851 | C59: 11534701.09 | D59: 0.8229632286 | E59: 0.0002609531146 | F59: 2477.13263 | G59: 1901.726188
A60: 54 | B60: 9481478.305 | C60: 11536691.99 | D60: 0.8218541597 | E60: 0.0002558876437 | F60: 2426.193142 | G60: 1853.352533
A61: 55 | B61: 9470256.679 | C61: 11505974.65 | D61: 0.8230729658 | E61: 0.0002614597375 | F61: 2476.090825 | G61: 1882.058742
A62: 56 | B62: 9458969.593 | C62: 11466227.23 | D62: 0.8249417535 | E62: 0.00027023989 | F62: 2556.190902 | G62: 1933.275853
A63: 57 | B63: 9447616.666 | C63: 11472961.75 | D63: 0.8234679824 | E63: 0.0002632915618 | F63: 2487.477747 | G63: 1871.947585
A64: 58 | B64: 9436197.514 | C64: 11431728.62 | D64: 0.8254392514 | E64: 0.0002726265703 | F64: 2572.558165 | G64: 1926.343008
A65: 59 | B65: 9424711.75 | C65: 11461631.22 | D65: 0.8222836318 | E65: 0.000257837411 | F65: 2430.043277 | G65: 1810.574354
A66: 60 | B66: 9413158.986 | C66: 11557482.5 | D66: 0.8144644811 | E66: 0.0002245563702 | F66: 2113.784814 | G66: 1567.10129
A67: 61 | B67: 9401538.83 | C67: 11560635.01 | D67: 0.8132372331 | E67: 0.0002197377789 | F67: 2065.873261 | G67: 1523.961191
A68: 62 | B68: 9389850.891 | C68: 11512972.36 | D68: 0.8155887637 | E68: 0.0002290633467 | F68: 2150.87067 | G68: 1578.768558
A69: 63 | B69: 9378094.771 | C69: 11590885.34 | D69: 0.8090921872 | E69: 0.0002042142481 | F69: 1915.140572 | G69: 1398.745706
A70: 64 | B70: 9366270.075 | C70: 11652987.63 | D70: 0.8037655555 | E70: 0.0001858644903 | F70: 1740.857014 | G70: 1265.129985
A71: 65 | B71: =B70+PPMT(NoteRate/12,$A71,Months,OUPB) -> 9354376.401 | C71: =C70*(1+NORMINV(RAND(),DCHPARate,DCHPAVolatility)) -> 11639160.88 | D71: 0.8036985227 | E71: =1/(1+EXP(-(PDParmA+PDParmB*D71))) -> 0.0001856443971 | F71: 1736.587567 | G71: =F71/(1+RiskFreeRate/12)^$A71 -> 1255.748515
A72: 66 | B72: 9342413.347 | C72: 11611118.02 | D72: =B72/C72 -> 0.8046092832 | E72: 0.0001886571662 | F72: =E72*B72 -> 1762.513228 | G72: 1268.154915
A73: 67 | B73: 9330380.508 | C73: 11623847.76 | D73: 0.8026929378 | E73: 0.0001823737977 | F73: 1701.616927 | G73: 1218.247867
A74: 68 | B74: 9318277.479 | C74: 11638873.61 | D74: 0.800616777 | E74: 0.0001758023384 | F74: 1638.174971 | G74: 1166.992559
A75: 69 | B75: 9306103.848 | C75: 11614466.45 | D75: 0.8012510854 | E75: 0.0001777845315 | F75: 1654.481313 | G75: 1172.74504
A76: 70 | B76: 9293859.204 | C76: 11705418.42 | D76: 0.7939792383 | E76: 0.0001563401213 | F76: 1453.003075 | G76: 1024.8073
A77: 71 | B77: 9281543.133 | C77: 11739644.66 | D77: 0.7906153379 | E77: 0.0001473148482 | F77: 1367.309118 | G77: 959.5692565
A78: 72 | B78: 9269155.218 | C78: 11860234.39 | D78: 0.7815322119 | E78: 0.0001254631746 | F78: 1162.93764 | G78: 812.0821802
A79: 73 | B79: 9256695.041 | C79: 11909968.48 | D79: 0.7772224633 | E79: 0.0001162599836 | F79: 1076.183214 | G79: 747.7625412
A80: 74 | B80: 9244162.179 | C80: 11854904.51 | D80: 0.7797753389 | E80: 0.0001216266556 | F80: 1124.33653 | G80: 777.3341563
A81: 75 | B81: 9231556.209 | C81: 11843978.39 | D81: 0.7794303492 | E81: 0.0001208871876 | F81: 1115.976868 | G81: 767.7159451
A82: 76 | B82: 9218876.704 | C82: 11787400.46 | D82: 0.7820958266 | E82: 0.0001267194064 | F82: 1168.210583 | G82: 799.6509231
A83: 77 | B83: 9206123.235 | C83: 11788079.64 | D83: 0.7809688698 | E83: 0.0001242199937 | F83: 1143.584571 | G83: 778.8996917
A84: 78 | B84: 9193295.371 | C84: 11759431.58 | D84: 0.7817805911 | E84: 0.0001260152411 | F84: 1158.495333 | G84: 785.1298179
A85: 79 | B85: 9180392.678 | C85: 11814001.44 | D85: 0.7770773288 | E85: 0.0001159620947 | F85: 1064.577565 | G85: 717.8908713
A86: 80 | B86: 9167414.719 | C86: 11810205.48 | D86: 0.7762282148 | E86: 0.0001142345175 | F86: 1047.235198 | G86: 702.6827462
A87: 81 | B87: 9154361.056 | C87: 11781203.35 | D87: 0.7770310712 | E87: 0.0001158673114 | F87: 1060.691203 | G87: 708.1707171
A88: 82 | B88: 9141231.246 | C88: 11810183.62 | D88: 0.7740126267 | E88: 0.0001098469731 | F88: 1004.136583 | G88: 667.0766293
A89: 83 | B89: 9128024.845 | C89: 11826703.96 | D89: 0.771814774 | E89: 0.0001056610494 | F89: 964.4766844 | G89: 637.5417167
A90: 84 | B90: 9114741.407 | C90: 11829726.89 | D90: 0.7704946607 | E90: 0.0001032238899 | F90: 940.8590634 | G90: 618.8357364
A91: 85 | B91: 9101380.483 | C91: 11878455.57 | D91: 0.7662090773 | E91: 9.569274637e-05 | F91: 870.9360941 | G91: 569.9949921
A92: 86 | B92: 9087941.619 | C92: 11926986 | D92: 0.7619646422 | E92: 8.877557303e-05 | F92: 806.7872249 | G92: 525.3850392
A93: 87 | B93: 9074424.362 | C93: 11900860.79 | D93: 0.7625015131 | E93: 8.962211357e-05 | F93: 813.2690908 | G93: 526.9712159
A94: 88 | B94: 9060828.255 | C94: 11895250.39 | D94: 0.7617181611 | E94: 8.838960296e-05 | F94: 800.8830119 | G94: 516.3636322
A95: 89 | B95: 9047152.837 | C95: 11910283.76 | D95: 0.7596085048 | E95: 8.515394321e-05 | F95: 770.4007389 | G95: 494.2392072
A96: 90 | B96: 9033397.646 | C96: 11933169.89 | D96: 0.7569989976 | E96: 8.131502105e-05 | F96: 734.5509197 | G96: 468.8958065
A97: 91 | B97: 9019562.216 | C97: 11982129.5 | D97: 0.7527511878 | E97: 7.543256632e-05 | F97: 680.368725 | G97: 432.1482135
A98: 92 | B98: 9005646.079 | C98: 12049036.26 | D98: 0.7474162985 | E98: 6.864372542e-05 | F98: 618.1810967 | G98: 390.6951672
A99: 93 | B99: 8991648.765 | C99: 12095075.38 | D99: 0.7434140327 | E99: 6.395488259e-05 | F99: 575.059841 | G99: 361.6340346
A100: 94 | B100: 8977569.8 | C100: 12194016.1 | D100: 0.7362274846 | E100: 5.632472744e-05 | F100: 505.6591721 | G100: 316.4084579
A101: 95 | B101: 8963408.708 | C101: 12192145.97 | D101: 0.7351789198 | E101: 5.529027188e-05 | F101: 495.5893044 | G101: 308.5645701
A102: 96 | B102: 8949165.009 | C102: 12232816.81 | D102: 0.7315702628 | E102: 5.187321184e-05 | F102: 464.2219323 | G102: 287.596586
A103: 97 | B103: 8934838.222 | C103: 12159547.22 | D103: 0.7348002404 | E103: 5.492137557e-05 | F103: 490.7136057 | G103: 302.4963294
A104: 98 | B104: 8920427.862 | C104: 12182780.54 | D104: 0.732216084 | E104: 5.246883972e-05 | F104: 468.0444998 | G104: 287.0867136
A105: 99 | B105: 8905933.442 | C105: 12161055.8 | D105: 0.7323322571 | E105: 5.257670726e-05 | F105: 468.2446555 | G105: 285.7805812
A106: 100 | B106: 8891354.471 | C106: 12083217.23 | D106: 0.7358433023 | E106: 5.594348717e-05 | F106: 497.4133747 | G106: 302.0725648
A107: 101 | B107: 8876690.456 | C107: 12135019.83 | D107: 0.731493692 | E107: 5.180304206e-05 | F107: 459.8395691 | G107: 277.8651636
A108: 102 | B108: 8861940.9 | C108: 12109683.8 | D108: 0.7318061354 | E108: 5.208996456e-05 | F108: 461.6181874 | G108: 277.5521605
A109: 103 | B109: 8847105.306 | C109: 12235459.83 | D109: 0.7230709289 | E109: 4.463636956e-05 | F109: 394.902662 | G109: 236.2575524
A110: 104 | B110: 8832183.171 | C110: 12339215.87 | D110: 0.7157815587 | E110: 3.923953255e-05 | F110: 346.570739 | G110: 206.3105656
A111: 105 | B111: 8817173.99 | C111: 12268661.04 | D111: 0.7186745121 | E111: 4.129855609e-05 | F111: 364.1365545 | G111: 215.6888993
A112: 106 | B112: 8802077.255 | C112: 12230523.58 | D112: 0.7196811483 | E112: 4.204007122e-05 | F112: 370.0399547 | G112: 218.0951827
A113: 107 | B113: 8786892.456 | C113: 12187134.22 | D113: 0.7209974305 | E113: 4.302980281e-05 | F113: 378.0982497 | G113: 221.7359235
A114: 108 | B114: 8771619.08 | C114: 12243506.74 | D114: 0.7164302895 | E114: 3.969214306e-05 | F114: 348.1643594 | G114: 203.1653505
A115: 109 | B115: 8756256.608 | C115: 12248367.04 | D115: 0.7148917548 | E115: 3.862711087e-05 | F115: 338.2288948 | G115: 196.3857515
A116: 110 | B116: 8740804.522 | C116: 12282154.97 | D116: 0.7116670113 | E116: 3.648663e-05 | F116: 318.9225005 | G116: 184.254612
A117: 111 | B117: 8725262.299 | C117: 12307659.59 | D117: 0.7089294461 | E117: 3.476287014e-05 | F117: 303.3151602 | G117: 174.3657823
A118: 112 | B118: 8709629.413 | C118: 12289551.93 | D118: 0.7087019496 | E118: 3.462334162e-05 | F118: 301.5564745 | G118: 172.4923109
A119: 113 | B119: 8693905.335 | C119: 12309086.15 | D119: 0.7062998203 | E119: 3.318380555e-05 | F119: 288.4968641 | G119: 164.2011212
A120: 114 | B120: 8678089.533 | C120: 12238075.67 | D120: 0.7091057261 | E120: 3.487137298e-05 | F120: 302.6168969 | G120: 171.3807872
A121: 115 | B121: 8662181.473 | C121: 12426447.36 | D121: 0.697076262 | E121: 2.819099373e-05 | F121: 244.1955036 | G121: 137.6070108
A122: 116 | B122: 8646180.615 | C122: 12321033.88 | D122: 0.7017414855 | E122: 3.061460509e-05 | F122: 264.6994051 | G122: 148.4191026
A123: 117 | B123: 8630086.419 | C123: 12318964.5 | D123: 0.7005529094 | E123: 2.997803182e-05 | F123: 258.7130053 | G123: 144.3407759
A124: 118 | B124: 8613898.34 | C124: 12375874.26 | D124: 0.6960234209 | E124: 2.767113385e-05 | F124: 238.356334 | G124: 132.321803
A125: 119 | B125: 8597615.831 | C125: 12522211.5 | D125: 0.6865892523 | E125: 2.342037118e-05 | F125: 201.3593541 | G125: 111.2270606
A126: 120 | B126: 8581238.341 | C126: 12665950.08 | D126: 0.6775045131 | E126: 1.994541861e-05 | F126: 171.1563909 | G126: 94.07315494
A127: 121 | B127: 8564765.315 | C127: 12695036.9 | D127: 0.6746546216 | E127: 1.896541151e-05 | F127: 162.4342987 | G127: 88.83503242
A128: 122 | B128: 8548196.196 | C128: 12680151.89 | D128: 0.6741398898 | E128: 1.879361228e-05 | F128: 160.651485 | G128: 87.42290023
A129: 123 | B129: 8531530.425 | C129: 12673879.37 | D129: 0.6731585629 | E129: 1.847037995e-05 | F129: 157.5806085 | G129: 85.32517292
A130: 124 | B130: 8514767.436 | C130: 12644718.07 | D130: 0.6733853132 | E130: 1.854457025e-05 | F130: 157.9027029 | G130: 85.07420634
A131: 125 | B131: 8497906.663 | C131: 12729484.05 | D131: 0.667576677 | E131: 1.673474776e-05 | F131: 142.2103245 | G131: 76.23833584
A132: 126 | B132: 8480947.536 | C132: 12653497.01 | D132: 0.6702453503 | E132: 1.754319725e-05 | F132: 148.7829355 | G132: 79.36505869
A133: 127 | B133: 8463889.48 | C133: 12694473.13 | D133: 0.666738146 | E133: 1.648849749e-05 | F133: 139.5568204 | G133: 74.07321984
A134: 128 | B134: 8446731.919 | C134: 12691480.04 | D134: 0.6655434901 | E134: 1.614391007e-05 | F134: 136.3632805 | G134: 72.01807947
A135: 129 | B135: =B134+PPMT(NoteRate/12,$A135,Months,OUPB) -> 8429474.273 | C135: =C134*(1+NORMINV(RAND(),DCHPARate,DCHPAVolatility)) -> 12677541.41 | D135: 0.6649139611 | E135: =1/(1+EXP(-(PDParmA+PDParmB*D135))) -> 1.596523511e-05 | F135: 134.5785386 | G135: =F135/(1+RiskFreeRate/12)^$A135 -> 70.72188722
A136: 130 | B136: 8412115.956 | C136: 12747550.45 | D136: =B136/C136 -> 0.6599005818 | E136: 1.461111828e-05 | F136: =E136*B136 -> 122.9104212 | G136: 64.26887218
A137: 131 | B137: 8394656.383 | C137: 12770830.24 | D137: 0.6573305121 | E137: 1.39621045e-05 | F137: 117.2070697 | G137: 60.98172682
A138: 132 | B138: 8377094.963 | C138: 12761610.14 | D138: 0.6564293119 | E138: 1.374142003e-05 | F138: 115.1131806 | G138: 59.59432454
A139: 133 | B139: 8359431.1 | C139: 12696492.24 | D139: 0.6584047738 | E139: 1.422980309e-05 | F139: 118.9530585 | G139: 61.27585777
A140: 134 | B140: 8341664.199 | C140: 12788941.22 | D140: 0.6522560436 | E140: 1.276409168e-05 | F140: 106.4737666 | G140: 54.57457251
A141: 135 | B141: 8323793.657 | C141: 12769475.27 | D141: 0.6518508771 | E141: 1.267299048e-05 | F141: 105.4873578 | G141: 53.79997542
A142: 136 | B142: 8305818.871 | C142: 12668881.84 | D142: 0.6556078882 | E142: 1.354331109e-05 | F142: 112.4882889 | G142: 57.08511911
A143: 137 | B143: 8287739.231 | C143: 12672275.71 | D143: 0.654005596 | E143: 1.316505591e-05 | F143: 109.1085504 | G143: 55.09451002
A144: 138 | B144: 8269554.127 | C144: 12629258.6 | D144: 0.6547933169 | E144: 1.334967539e-05 | F144: 110.3958632 | G144: 55.46720437
A145: 139 | B145: 8251262.944 | C145: 12603467.06 | D145: 0.654681994 | E145: 1.332342819e-05 | F145: 109.9351093 | G145: 54.96089906
A146: 140 | B146: 8232865.061 | C146: 12562454 | D146: 0.6553548422 | E146: 1.348285945e-05 | F146: 111.0025625 | G146: 55.21846871
A147: 141 | B147: 8214359.858 | C147: 12534977.71 | D147: 0.655315075 | E147: 1.347338382e-05 | F147: 110.6752232 | G147: 54.78172442
A148: 142 | B148: 8195746.708 | C148: 12443589.09 | D148: 0.6586320591 | E148: 1.428709555e-05 | F148: 117.0934163 | G148: 57.67023321
A149: 143 | B149: 8177024.98 | C149: 12441955.33 | D149: 0.6572138193 | E149: 1.393333041e-05 | F149: 113.9331908 | G149: 55.83460258
A150: 144 | B150: 8158194.043 | C150: 12499886.83 | D150: 0.6526614326 | E150: 1.285589833e-05 | F150: 104.8809132 | G150: 51.14268999
A151: 145 | B151: 8139253.259 | C151: 12539110.87 | D151: 0.6491092827 | E151: 1.207339912e-05 | F151: 98.26845313 | G151: 47.67988124
A152: 146 | B152: 8120201.987 | C152: 12653121.87 | D152: 0.6417548231 | E152: 1.06013961e-05 | F152: 86.08547766 | G152: 41.56089364
A153: 147 | B153: 8101039.582 | C153: 12778402.93 | D153: 0.6339633853 | E153: 9.237222882e-06 | F153: 74.8311082 | G153: 35.94769917
A154: 148 | B154: 8081765.397 | C154: 12803285.57 | D154: 0.6312258955 | E154: 8.800823597e-06 | F154: 71.12619161 | G154: 33.99792531
A155: 149 | B155: 8062378.779 | C155: 12769783.69 | D155: 0.6313637703 | E155: 8.822301639e-06 | F155: 71.12873752 | G155: 33.82999228
A156: 150 | B156: 8042879.072 | C156: 12730733.5 | D156: 0.6317687093 | E156: 8.885686243e-06 | F156: 71.46649993 | G156: 33.82152996
A157: 151 | B157: 8023265.617 | C157: 12737851.73 | D157: 0.6298758838 | E157: 8.593262742e-06 | F157: 68.9460295 | G157: 32.46638509
A158: 152 | B158: 8003537.751 | C158: 12686235.02 | D158: 0.6308836102 | E158: 8.74772843e-06 | F158: 70.01277472 | G158: 32.80468733
A159: 153 | B159: 7983694.805 | C159: 12709556.77 | D159: 0.6281646915 | E159: 8.337191203e-06 | F159: 66.56159009 | G159: 31.03246252
A160: 154 | B160: 7963736.108 | C160: 12698272.1 | D160: 0.6271511622 | E160: 8.189134499e-06 | F160: 65.2161061 | G160: 30.25389909
A161: 155 | B161: 7943660.986 | C161: 12798219.63 | D161: 0.6206848466 | E161: 7.304497968e-06 | F161: 58.02445553 | G161: 26.78375735
A162: 156 | B162: 7923468.759 | C162: 12785060.73 | D162: 0.6197443191 | E162: 7.184046033e-06 | F162: 56.9225643 | G162: 26.1444086
A163: 157 | B163: 7903158.744 | C163: 12661840.28 | D163: 0.6241714136 | E163: 7.768905534e-06 | F163: 61.3988937 | G163: 28.06007647
A164: 158 | B164: 7882730.254 | C164: 12647583.44 | D164: 0.6232597944 | E164: 7.644701498e-06 | F164: 60.26111978 | G164: 27.40308388
A165: 159 | B165: 7862182.597 | C165: 12675939.94 | D165: 0.6202445447 | E165: 7.247859794e-06 | F165: 56.98399714 | G165: 25.78392862
A166: 160 | B166: 7841515.08 | C166: 12757212.47 | D166: 0.6146730796 | E166: 6.567992933e-06 | F166: 51.50301563 | G166: 23.18797256
A167: 161 | B167: 7820727.001 | C167: 12796448.18 | D167: 0.6111638862 | E167: 6.172903022e-06 | F167: 48.27658934 | G167: 21.62721699
A168: 162 | B168: 7799817.659 | C168: 12836209.36 | D168: 0.607641823 | E168: 5.800259299e-06 | F168: 45.24096491 | G168: 20.1664686
A169: 163 | B169: 7778786.346 | C169: 12967233.25 | D169: 0.5998801899 | E169: 5.056550392e-06 | F169: 39.33382515 | G169: 17.44609032
A170: 164 | B170: 7757632.35 | C170: 12985424.64 | D170: 0.5974107558 | E170: 4.840544922e-06 | F170: 37.55116788 | G170: 16.57254933
A171: 165 | B171: 7736354.956 | C171: 12938679.59 | D171: 0.5979246107 | E171: 4.884718998e-06 | F171: 37.78992003 | G171: 16.59494369
A172: 166 | B172: 7714953.444 | C172: 13023924.84 | D172: 0.5923677801 | E172: 4.427664896e-06 | F172: 34.15922854 | G172: 14.92594381
A173: 167 | B173: 7693427.089 | C173: 12989201.85 | D173: 0.5922940593 | E173: 4.42189802e-06 | F173: 34.01955002 | G173: 14.79095622
A174: 168 | B174: 7671775.165 | C174: 13143256.79 | D174: 0.5837042743 | E174: 3.79889331e-06 | F174: 29.14425535 | G174: 12.60824352
A175: 169 | B175: 7649996.937 | C175: 13210711.74 | D175: 0.5790753054 | E175: 3.500388572e-06 | F175: 26.77796185 | G175: 11.52691476
A176: 170 | B176: 7628091.67 | C176: 13187645.58 | D176: 0.578427106 | E176: 3.460504636e-06 | F176: 26.39704659 | G176: 11.30641287
A177: 171 | B177: 7606058.621 | C177: 13227788 | D177: 0.5750060874 | E177: 3.257415293e-06 | F177: 24.77609167 | G177: 10.55932699
A178: 172 | B178: 7583897.047 | C178: 13372001.87 | D178: 0.5671474714 | E178: 2.834884003e-06 | F178: 21.49946842 | G178: 9.117275954
A179: 173 | B179: 7561606.197 | C179: 13319810.25 | D179: 0.5676962399 | E179: 2.862521098e-06 | F179: 21.64525727 | G179: 9.133433442
A180: 174 | B180: 7539185.317 | C180: 13310947.63 | D180: 0.5663898262 | E180: 2.797165426e-06 | F180: 21.08834851 | G180: 8.854169357
A181: 175 | B181: 7516633.649 | C181: 13239093.1 | D181: 0.5677604647 | E181: 2.865773146e-06 | F181: 21.54096686 | G181: 8.999209976
A182: 176 | B182: 7493950.429 | C182: 13403014.92 | D182: 0.5591242323 | E182: 2.459990717e-06 | F182: 18.43504849 | G182: 7.663328015
A183: 177 | B183: 7471134.89 | C183: 13455460.89 | D183: 0.5552492739 | E183: 2.297110153e-06 | F183: 17.16201981 | G183: 7.098645167
A184: 178 | B184: 7448186.261 | C184: 13592470.27 | D184: 0.5479641384 | E184: 2.019514949e-06 | F184: 15.0417235 | G184: 6.190683604
A185: 179 | B185: 7425103.764 | C185: 13691362.17 | D185: 0.5423203089 | E185: 1.827738853e-06 | F185: 13.57115064 | G185: 5.557655423
A186: 180 | B186: 7401886.62 | C186: 13654412.47 | D186: 0.5420875222 | E186: 1.820232328e-06 | F186: 13.47315331 | G186: 5.490073207
A187: 181 | B187: 7378534.043 | C187: 13718834.78 | D187: 0.5378397046 | E187: 1.688543956e-06 | F187: 12.45897906 | G187: 5.051557235
A188: 182 | B188: 7355045.242 | C188: 13739016.9 | D188: 0.5353399951 | E188: 1.615547644e-06 | F188: 11.88242601 | G188: 4.793821724
A189: 183 | B189: 7331419.423 | C189: 13839525.97 | D189: 0.5297449811 | E189: 1.463395203e-06 | F189: 10.72876401 | G189: 4.306856396
A190: 184 | B190: 7307655.786 | C190: 13968811.15 | D190: 0.5231408535 | E190: 1.30213367e-06 | F190: 9.515544648 | G190: 3.800828625
A191: 185 | B191: 7283753.529 | C191: 14054330.12 | D191: 0.5182568979 | E191: 1.194419467e-06 | F191: 8.699857011 | G191: 3.457726909
A192: 186 | B192: 7259711.842 | C192: 13997153.8 | D192: 0.5186562886 | E192: 1.202882951e-06 | F192: 8.732583603 | G192: 3.453466642
A193: 187 | B193: 7235529.911 | C193: 13962494.43 | D193: 0.5182118385 | E193: 1.193468361e-06 | F193: 8.635376023 | G193: 3.398033883
A194: 188 | B194: 7211206.92 | C194: 13823883.38 | D194: 0.5216484195 | E194: 1.268226308e-06 | F194: 9.145442326 | G194: 3.580841557
A195: 189 | B195: 7186742.044 | C195: 13818803.89 | D195: 0.5200697617 | E195: 1.233320427e-06 | F195: 8.863555768 | G195: 3.453204591
A196: 190 | B196: 7162134.456 | C196: 13825853.04 | D196: 0.5180247783 | E196: 1.189528012e-06 | F196: 8.519559561 | G196: 3.302671735
A197: 191 | B197: 7137383.324 | C197: 13810814.49 | D197: 0.5167966981 | E197: 1.163980093e-06 | F197: 8.307772104 | G197: 3.204547985
A198: 192 | B198: 7112487.811 | C198: 13746158.54 | D198: 0.5174163962 | E198: 1.176802426e-06 | F198: 8.369992911 | G198: 3.21248592
A199: 193 | B199: =B198+PPMT(NoteRate/12,$A199,Months,OUPB) -> 7087447.074 | C199: =C198*(1+NORMINV(RAND(),DCHPARate,DCHPAVolatility)) -> 13873155.34 | D199: 0.5108749162 | E199: =1/(1+EXP(-(PDParmA+PDParmB*D199))) -> 1.048282867e-06 | F199: 7.429649336 | G199: =F199/(1+RiskFreeRate/12)^$A199 -> 2.837385842
A200: 194 | B200: 7062260.265 | C200: 13899831.45 | D200: =B200/C200 -> 0.508082439 | E200: 9.977874173e-07 | F200: =E200*B200 -> 7.04663443 | G200: 2.677723689
A201: 195 | B201: 7036926.534 | C201: 13922800.83 | D201: 0.5054246354 | E201: 9.519882178e-07 | F201: 6.69907115 | G201: 2.532984591
A202: 196 | B202: 7011445.023 | C202: 13953962.35 | D202: 0.5024698251 | E202: 9.035344659e-07 | F202: 6.335082233 | G202: 2.383439609
A203: 197 | B203: 6985814.869 | C203: 14084757.84 | D203: 0.4959840239 | E203: 8.056513536e-07 | F203: 5.628131205 | G203: 2.10692971
... 163 more rows
